bitfinex-derivatives/quotes_SOLF0:USTF0_20250321
["timestamp","ask_amount","ask_price","bid_price","bid_amount"]
[1742583262178,17.80680095,127.53,127.45,42.19579304]
[1742583262479,4.1321,127.53,127.46,53.34680095]
[1742583263071,0.05976491,127.51,127.48,7.90657407]
[1742583263275,35.54,127.5,127.48,0.05877407]
[1742583263473,62.0,127.49,127.48,0.05877407]
[1742583272786,69.8475,127.49,127.48,0.05877407]
[1742583272988,62.0,127.49,127.48,0.05877407]
[1742583282188,69.8475,127.49,127.48,0.05877407]
[1742583282492,62.0,127.49,127.48,0.05877407]
[1742583282683,69.84,127.49,127.4,262.7713]
[1742583282992,17.80680095,127.47,127.42,7.8517]
[1742583283184,35.5,127.46,127.4,262.7713]
[1742583283584,7.8499,127.45,127.41,7.8521]
[1742583283788,0.05611564,127.44,127.42,0.05180949]
[1742583283989,35.5,127.43,127.42,0.05180949]
[1742583284194,0.05611564,127.44,127.43,7.8512]
[1742583284388,0.05611564,127.44,127.42,0.05180949]
[1742583284783,7.90681564,127.44,127.42,0.05180949]
[1742583284986,0.05611564,127.44,127.42,0.05180949]
[1742583286194,62.0,127.43,127.42,0.05180949]
[1742583287892,53.30680095,127.5,127.42,0.05180949]
[1742583288089,53.30680095,127.5,127.41,53.30680095]
[1742583288090,17.80680095,127.48,127.41,53.30680095]
[1742583288288,17.80680095,127.48,127.41,35.5]
[1742583288484,17.80680095,127.48,127.43,7.8509]
[1742583288898,97.48,127.47,127.43,7.8509]
[1742583289192,97.53997171,127.47,127.44,0.05519492]
[1742583289586,97.53997171,127.47,127.44,7.90569492]
[1742583291392,97.53997171,127.47,127.45,7.8499]
[1742583291890,97.53997171,127.47,127.44,0.05519492]
[1742583291891,17.80680095,127.46,127.44,0.05519492]
[1742583292293,21.77430095,127.46,127.44,0.05519492]
[1742583292496,29.62390095,127.46,127.44,0.05519492]
[1742583293098,11.50098005,127.45,127.44,0.05519492]
[1742583293593,19.35088005,127.45,127.44,0.05519492]
[1742583293792,54.83088005,127.45,127.44,0.05519492]
[1742583293993,46.98098005,127.45,127.44,0.05519492]
[1742583294998,116.83088005,127.45,127.44,0.05519492]
[1742583295497,116.83088005,127.45,127.42,7.8515]
[1742583295699,11.50098005,127.43,127.42,7.8515]
[1742583297498,11.5547028,127.44,127.41,0.05585299]
[1742583298787,62.0,127.43,127.41,0.05585299]
[1742583299192,62.0,127.43,127.42,7.8513]
[1742583299498,0.05372275,127.44,127.41,11.55683304]
[1742583299687,0.05372275,127.44,127.41,47.01683304]
[1742583300399,0.05372275,127.44,127.43,19.35218005]
[1742583300701,11.50098005,127.49,127.43,11.50098005]
[1742583300893,8.2524,127.51,127.42,4.3728]
[1742583300894,11.50098005,127.5,127.48,7.8476]
[1742583301800,11.55449535,127.5,127.48,7.90144266]
[1742583302599,62.0,127.49,127.48,7.90144266]
[1742583306103,1.53e-05,127.5,127.49,7.8475]
[1742583306294,1.53e-05,127.5,127.49,33.96203158]
[1742583306696,43.2081793,127.58,127.49,33.95453158]
[1742583306895,17.95253158,127.57,127.5,39.6716]
[1742583307102,53.39253158,127.57,127.5,39.6716]
[1742583307299,35.44,127.57,127.5,39.6716]
[1742583307497,35.44,127.57,127.51,17.95253158]
[1742583307697,43.2081793,127.58,127.55,7.8435]
[1742583308102,43.25887718,127.58,127.55,7.8435]
[1742583308801,0.05069788,127.58,127.54,7.8441]
[1742583309102,62.0,127.57,127.53,35.49574551]
[1742583309303,62.0,127.57,127.54,4.2033]
[1742583309902,62.0,127.57,127.54,12.0472]
[1742583310103,71.32506316,127.56,127.41,15.7038]
[1742583310293,17.95253158,127.53,127.45,8.3428]
[1742583310491,35.42,127.52,127.45,8.3428]
[1742583310696,7.8463,127.51,127.45,8.3428]
[1742583310992,17.95253158,127.5,127.45,8.3428]
[1742583311305,35.4800186,127.49,127.46,0.05480573]
[1742583311595,0.0600186,127.49,127.46,0.05480573]
[1742583311996,17.95253158,127.48,127.42,10.56424493]
[1742583312305,7.8499,127.45,127.42,10.56424493]
[1742583312503,35.42,127.44,127.42,10.56424493]
[1742583313097,62.0,127.43,127.42,10.56424493]
[1742583313299,62.0,127.43,127.42,10.62202029]
[1742583313604,62.0,127.43,127.42,7.90957536]
[1742583313802,62.0,127.43,127.42,0.05777536]
[1742583318803,62.0,127.43,127.35,7.8556]
[1742583319005,17.95253158,127.42,127.33,17.95253158]
[1742583319205,35.4,127.41,127.33,53.35253158]
[1742583319703,0.05508284,127.38,127.33,53.35253158]
[1742583319910,0.05508284,127.38,127.36,0.05630133]
[1742583321609,0.05508284,127.38,127.37,7.8549]
[1742583322209,17.95253158,127.44,127.37,35.4]
[1742583322409,17.95253158,127.44,127.38,4.3034]
[1742583322912,53.35253158,127.44,127.38,4.3034]
[1742583323313,0.05479575,127.42,127.4,0.05280754]
[1742583324014,0.05479575,127.42,127.4,7.90550754]
[1742583324914,0.05479575,127.42,127.4,0.05280754]
[1742583325117,62.0,127.41,127.4,0.05280754]
[1742583325912,0.05479575,127.42,127.41,7.8524]
[1742583326316,0.05479575,127.42,127.4,0.05280754]
[1742583327721,0.05479575,127.42,127.41,7.8524]
[1742583328922,62.05479575,127.42,127.41,7.8524]
[1742583331516,0.05479575,127.42,127.41,7.8524]
[1742583332924,15.45576689,127.52,127.41,61.17253158]
[1742583333120,35.38,127.53,127.46,17.95253158]
[1742583333623,35.38,127.53,127.51,7.8458]
[1742583333819,35.38,127.52,127.45,35.38]
[1742583334125,0.0574341,127.5,127.49,7.8472]
[1742583334423,0.0574341,127.5,127.47,0.05862957]
[1742583334625,62.0,127.49,127.47,0.05862957]
[1742583334823,97.38,127.49,127.47,0.05862957]
[1742583335017,115.33253158,127.49,127.47,0.05862957]
[1742583337124,97.38,127.49,127.47,0.05862957]
[1742583337325,97.38,127.49,127.48,7.8481]
[1742583337528,62.0,127.49,127.48,7.8481]
[1742583338521,0.0574341,127.5,127.49,7.8475]
[1742583339023,0.0574341,127.5,127.48,7.8475]
[1742583339222,0.0574341,127.5,127.47,0.05862957]
[1742583339423,35.4174341,127.5,127.47,0.05862957]
[1742583339625,35.4174341,127.5,127.47,7.90722957]
[1742583339830,35.4174341,127.5,127.47,0.05862957]
[1742583340232,35.4174341,127.5,127.48,7.8476]
[1742583340420,35.4174341,127.5,127.47,0.05862957]
[1742583341131,0.0574341,127.5,127.47,0.05862957]
[1742583341332,0.0574341,127.5,127.48,7.8476]
[1742583341532,62.0,127.49,127.48,7.8476]
[1742583344331,97.34,127.49,127.47,0.05862957]
[1742583344634,115.29253158,127.49,127.47,0.05862957]
[1742583345235,97.34,127.49,127.47,0.05862957]
[1742583345530,62.0,127.49,127.48,7.8481]
[1742583348129,62.0,127.49,127.47,0.05862957]
[1742583349537,62.0,127.49,127.48,7.8481]
[1742583353434,0.0574341,127.5,127.48,7.8481]
[1742583353642,0.0574341,127.5,127.49,7.8475]
[1742583357142,3.41e-05,127.5,127.49,7.8475]
[1742583357342,35.3,127.58,127.49,25.79253158]
[1742583357544,35.3,127.58,127.51,17.95253158]
[1742583357736,35.3,127.58,127.54,7.844]
[1742583358139,17.95253158,127.59,127.54,7.844]
[1742583358335,62.0,127.57,127.55,7.8437]
[1742583358545,62.0,127.57,127.55,0.05167774]
[1742583358945,62.0,127.57,127.56,7.8432]
[1742583359444,62.0,127.57,127.55,7.89517774]
[1742583359643,62.0,127.57,127.55,0.05167774]
[1742583359940,62.0,127.57,127.56,7.8432]
[1742583361341,62.0,127.57,127.55,7.89517774]
[1742583361544,62.0,127.57,127.55,0.05167774]
[1742583362148,62.0,127.57,127.56,7.8432]
[1742583362442,62.0,127.57,127.55,0.05167774]
[1742583364438,53.23253158,127.56,127.49,8.6553]
[1742583364844,17.95253158,127.54,127.49,8.6553]
[1742583365048,35.28,127.53,127.49,8.6553]
[1742583365537,35.28,127.53,127.49,16.5025]
[1742583365740,0.05618472,127.52,127.5,0.05570169]
[1742583366146,0.05618472,127.52,127.51,7.8462]
[1742583366945,0.05618472,127.52,127.5,0.05570169]
[1742583367846,7.90208472,127.52,127.5,0.05570169]
[1742583368241,18.0087163,127.52,127.5,0.05570169]
[1742583368444,7.8462,127.51,127.5,0.05570169]
[1742583369443,7.8482,127.48,127.44,8.5152]
[1742583369645,35.26,127.48,127.46,7.8492]
[1742583370444,62.0,127.47,127.42,258.84]
[1742583370646,17.95253158,127.46,127.38,17.95253158]
[1742583370847,35.26,127.45,127.43,0.05357271]
[1742583371149,35.31314554,127.45,127.43,0.05357271]
[1742583371548,0.05314554,127.45,127.43,0.05357271]
[1742583371846,0.05314554,127.45,127.44,7.8505]
[1742583372050,35.26,127.51,127.44,17.95253158]
[1742583372246,35.26,127.51,127.44,26.52703158]
[1742583372447,35.26,127.51,127.46,17.95253158]
[1742583372845,35.26,127.51,127.49,7.847]
[1742583373248,35.3170772,127.51,127.49,7.9053066]
[1742583373440,35.3170772,127.51,127.49,0.0583066]
[1742583374050,62.0,127.5,127.49,0.0583066]
[1742583374451,62.0,127.5,127.49,7.9058066]
[1742583376551,62.0,127.5,127.49,0.0583066]
[1742583378152,62.0,127.5,127.49,7.9058066]
[1742583378556,62.0,127.5,127.49,0.0583066]
[1742583379451,62.0,127.5,127.49,7.9058066]
[1742583381157,0.0570772,127.51,127.5,7.8469]
[1742583381659,7.72e-05,127.51,127.5,7.8469]
[1742583381861,118.79220973,127.6,127.58,7.8419]
[1742583382557,118.79220973,127.6,127.57,7.8422]
[1742583382756,118.79220973,127.6,127.53,35.24]
[1742583383157,0.05146692,127.57,127.55,0.05769755]
[1742583384261,62.0,127.56,127.55,0.05769755]
[1742583384660,62.0,127.56,127.55,7.90149755]
[1742583385158,0.05146692,127.57,127.55,0.05769755]
[1742583385661,0.05146692,127.57,127.55,7.90109755]
[1742583386363,0.05146692,127.57,127.55,0.05769755]
[1742583386965,35.27146692,127.57,127.55,0.05769755]
[1742583387167,17.95253158,127.56,127.5,4.3446]
[1742583387466,17.95253158,127.54,127.46,4.2689]
[1742583387764,17.95253158,127.52,127.45,8.1523]
[1742583387965,17.95253158,127.5,127.45,7.8497]
[1742583388160,62.0,127.49,127.44,258.86]
[1742583388364,62.05593773,127.49,127.46,7.90335392]
[1742583389057,62.05593773,127.49,127.46,0.05455392]
[1742583391161,62.05593773,127.49,127.46,7.90335392]
[1742583392566,62.05593773,127.49,127.46,0.05455392]
[1742583393369,62.05593773,127.49,127.46,7.90375392]
[1742583393568,62.05593773,127.49,127.46,0.05455392]
[1742583393966,0.05593773,127.49,127.46,28.7856752]
[1742583394267,0.05593773,127.49,127.47,35.2]
[1742583394467,0.05593773,127.49,127.48,7.8481]
[1742583394667,35.2,127.55,127.47,35.2]
[1742583394869,43.2081793,127.59,127.51,28.73112128]
[1742583395164,43.2081793,127.59,127.55,7.8438]
[1742583395470,43.2081793,127.59,127.52,35.2]
[1742583395663,43.2081793,127.59,127.55,7.8436]
[1742583395864,0.05247961,127.57,127.54,0.05370986]
[1742583396073,0.05247961,127.57,127.55,35.2]
[1742583396667,7.961e-05,127.57,127.56,7.8432]
[1742583397663,30.30255891,127.59,127.58,7.8419]
[1742583397868,18.27885891,127.59,127.58,43.0219]
[1742583398474,8.3718,127.65,127.58,35.18]
[1742583398670,133.40431454,127.69,127.58,35.18]
[1742583398869,0.05003902,127.63,127.62,7.8395]
[1742583399173,139.85319326,127.69,127.62,35.18]
[1742583399371,139.85319326,127.69,127.64,7.8379]
[1742583399566,0.06029209,127.68,127.59,63.91112128]
[1742583399767,139.85319326,127.69,127.64,0.05925918]
[1742583399964,0.057865,127.65,127.64,0.05925918]
[1742583400168,139.85319326,127.69,127.64,0.05925918]
[1742583400368,0.05069117,127.66,127.64,0.05925918]
[1742583401368,35.21069117,127.66,127.64,0.05925918]
[1742583401570,62.0,127.65,127.64,0.05925918]
[1742583401775,62.0,127.65,127.64,7.89745918]
[1742583401977,62.0,127.65,127.64,0.05925918]
[1742583403783,69.8376,127.65,127.64,0.05925918]
[1742583403980,70.2135,127.65,127.57,258.86]
[1742583404174,62.0,127.65,127.62,7.8393]
[1742583404478,65.9844,127.65,127.57,258.86]
[1742583404674,73.8224,127.65,127.61,7.8397]
[1742583404879,69.838,127.65,127.61,7.8397]
[1742583405070,0.05963337,127.64,127.62,0.05712912]
[1742583405272,7.89823337,127.64,127.62,0.05712912]
[1742583405676,0.05963337,127.64,127.62,0.05712912]
[1742583405877,0.05963337,127.64,127.63,7.8389]
[1742583406375,0.05963337,127.64,127.62,0.05712912]
[1742583406581,7.89823337,127.64,127.62,0.05712912]
[1742583407779,7.8389,127.63,127.62,0.05712912]
[1742583408181,62.0,127.63,127.62,0.05712912]
[1742583408380,69.8389,127.63,127.62,0.05712912]
[1742583408579,106.41002128,127.63,127.62,0.05712912]
[1742583408783,102.84142128,127.63,127.52,293.86]
[1742583408983,7.8415,127.59,127.52,293.86]
[1742583409179,35.14,127.59,127.52,293.86]
[1742583409782,0.05640698,127.58,127.55,0.0533721]
[1742583410482,0.05640698,127.58,127.57,7.8425]
[1742583411180,35.12,127.61,127.6,7.8407]
[1742583411381,35.12,127.63,127.6,7.8407]
[1742583411593,35.12,127.63,127.56,4.2429]
[1742583412289,62.0,127.62,127.6,7.8407]
[1742583412484,0.05452752,127.61,127.58,0.05870686]
[1742583413079,0.05452752,127.61,127.58,293.87870686]
[1742583413588,0.05452752,127.61,127.6,7.8407]
[1742583414291,0.05452752,127.61,127.58,258.75870686]
[1742583415391,0.05452752,127.61,127.6,7.8407]
[1742583415592,62.05452752,127.61,127.6,7.8407]
[1742583416681,62.05452752,127.61,127.59,7.841]
[1742583416892,62.05452752,127.61,127.58,258.75870686]
[1742583417392,62.05452752,127.61,127.6,7.8407]
[1742583417592,62.05452752,127.61,127.58,258.75870686]
[1742583418188,62.05452752,127.61,127.6,7.8407]
[1742583418687,62.05452752,127.61,127.59,7.8411]
[1742583419396,62.05452752,127.61,127.6,7.8407]
[1742583419994,79.97541287,127.61,127.58,0.05870686]
[1742583420196,35.1,127.6,127.58,0.05870686]
[1742583420696,35.1,127.6,127.59,7.8412]
[1742583421792,35.1,127.6,127.58,7.90040686]
[1742583422097,35.1,127.6,127.58,0.05870686]
[1742583422796,42.9408,127.6,127.58,0.05870686]
[1742583422987,35.1,127.6,127.58,0.05870686]
[1742583423395,39.1136,127.6,127.55,7.8434]
[1742583423597,39.1136,127.6,127.53,258.7]
[1742583424297,7.8416,127.59,127.53,258.7]
[1742583424499,0.05674348,127.58,127.55,0.05859017]
[1742583424694,35.1,127.57,127.55,0.05859017]
[1742583425295,35.1,127.57,127.56,7.8432]
[1742583427896,53.02088535,127.57,127.55,0.05859017]
[1742583428398,7.8432,127.56,127.55,0.05859017]
[1742583428795,0.05674348,127.58,127.56,7.8432]
[1742583429000,35.08,127.57,127.56,7.8432]
[1742583430606,35.08,127.57,127.55,0.05859017]
[1742583430904,42.9231,127.57,127.55,0.05859017]
[1742583431104,62.0,127.56,127.55,0.05859017]
[1742583431506,69.8432,127.56,127.55,0.05859017]
[1742583431801,62.0,127.56,127.55,0.05859017]
[1742583432193,62.0,127.56,127.55,7.90239017]
[1742583433101,0.05674348,127.58,127.57,7.8425]
[1742583434611,0.05674348,127.58,127.55,0.05859017]
[1742583434916,35.08,127.57,127.55,0.05859017]
[1742583435512,35.08,127.57,127.55,7.90239017]
[1742583435808,35.08,127.57,127.55,0.05859017]
[1742583436002,62.0,127.56,127.55,7.90239017]
[1742583436805,62.0,127.56,127.55,0.05859017]
[1742583437001,97.06,127.56,127.55,0.05859017]
[1742583437206,104.9032,127.56,127.55,0.05859017]
[1742583438411,7.8446,127.54,127.51,7.8462]
[1742583438610,35.06,127.53,127.51,7.8462]
[1742583438809,35.06,127.53,127.52,7.8456]
[1742583439206,35.06,127.53,127.48,258.78]
[1742583439512,35.06,127.53,127.51,0.05609366]
[1742583439513,52.98088535,127.53,127.51,0.05609366]
[1742583439708,17.92088535,127.52,127.43,297.9444]
[1742583440016,17.92088535,127.52,127.43,4.0844]
[1742583440705,7.8475,127.49,127.46,7.849]
[1742583440911,35.06,127.48,127.46,7.90300678]
[1742583441105,52.98088535,127.48,127.46,0.05400678]
[1742583441514,7.8487,127.47,127.46,0.05400678]
[1742583441709,52.98088535,127.48,127.46,0.05400678]
[1742583442818,52.98088535,127.48,127.46,7.90310678]
[1742583443319,62.0,127.47,127.46,0.05400678]
[1742583445118,62.0,127.47,127.46,7.90330678]
[1742583445415,52.98088535,127.55,127.46,17.97489213]
[1742583445614,35.06,127.54,127.51,7.8462]
[1742583445811,38.25458535,127.57,127.48,35.06]
[1742583445812,52.98088535,127.55,127.48,35.06]
[1742583446008,17.92088535,127.51,127.43,52.98088535]
[1742583446210,97.06,127.5,127.47,7.8487]
[1742583446413,97.06,127.5,127.43,52.98088535]
[1742583446617,97.11054188,127.5,127.47,0.05520265]
[1742583446822,97.11054188,127.5,127.47,7.90350265]
[1742583447427,97.11054188,127.5,127.48,7.8479]
[1742583447721,97.11054188,127.5,127.47,0.05520265]
[1742583448319,30.10288535,127.49,127.44,7.8505]
[1742583448522,17.92088535,127.47,127.38,17.92088535]
[1742583448712,35.06,127.46,127.38,17.92088535]
[1742583448917,35.06,127.46,127.43,7.8509]
[1742583449113,35.06,127.46,127.38,17.92088535]
[1742583449314,0.05736958,127.43,127.41,0.05058224]
[1742583449521,0.05736958,127.43,127.42,7.8512]
[1742583454824,0.05736958,127.43,127.41,7.90268224]
[1742583455328,35.09736958,127.43,127.41,7.90268224]
[1742583455929,35.09736958,127.43,127.42,7.8518]
[1742583457230,26.31728535,127.49,127.46,7.8491]
[1742583457450,35.04,127.48,127.46,7.8491]
[1742583457730,35.04,127.48,127.46,7.8487]
[1742583458126,35.04,127.48,127.42,22.15698535]
[1742583458431,0.05860288,127.46,127.44,0.05879139]
[1742583459430,0.05860288,127.46,127.45,7.8499]
[1742583463225,2.88e-06,127.46,127.45,7.8499]
[1742583464331,30.55868535,127.53,127.45,7.84]
[1742583464332,4.1406,127.53,127.45,7.84]
[1742583464533,35.02,127.52,127.46,52.94088535]
[1742583464839,35.02,127.54,127.46,52.94088535]
[1742583465037,17.92088535,127.53,127.44,17.92088535]
[1742583465638,0.05871796,127.5,127.47,0.05414537]
[1742583465827,35.02,127.49,127.47,0.05414537]
[1742583467435,62.0,127.48,127.47,0.05414537]
[1742583468031,62.0,127.48,127.47,7.90284537]
[1742583468238,0.05871796,127.5,127.47,0.05414537]
[1742583468940,0.05871796,127.5,127.48,7.8477]
[1742583469745,0.05871796,127.5,127.47,0.05414537]
[1742583471143,62.05871796,127.5,127.47,0.05414537]
[1742583471545,62.05871796,127.5,127.49,7.8475]
[1742583471847,62.05871796,127.5,127.47,0.05414537]
[1742583472647,62.05871796,127.5,127.48,7.8481]
[1742583474643,62.05871796,127.5,127.47,0.05414537]
[1742583474844,79.97960331,127.5,127.47,0.05414537]
[1742583475045,4.1664,127.49,127.42,263.2361]
[1742583475242,52.90088535,127.48,127.44,7.8503]
[1742583475444,52.90088535,127.48,127.42,259.0]
[1742583475745,34.98,127.48,127.47,7.8487]
[1742583476546,0.0509231,127.49,127.46,0.05714409]
[1742583476940,0.0509231,127.49,127.48,7.8481]
[1742583478143,62.0509231,127.49,127.48,7.8481]
[1742583478341,62.0509231,127.49,127.46,0.05714409]
[1742583478747,62.0509231,127.49,127.48,7.8481]
[1742583478943,62.0509231,127.49,127.46,0.05714409]
[1742583479350,62.0509231,127.49,127.47,7.8484]
[1742583479550,62.0509231,127.49,127.46,0.05714409]
[1742583480357,62.0509231,127.49,127.46,7.90614409]
[1742583480558,62.0509231,127.49,127.46,0.05714409]
[1742583480759,34.98,127.48,127.46,0.05714409]
[1742583480961,34.98,127.48,127.46,7.90624409]
[1742583481259,34.98,127.48,127.42,259.0]
[1742583481461,39.0636,127.48,127.42,259.0]
[1742583481651,46.9122,127.48,127.44,7.8503]
[1742583482055,46.9122,127.48,127.42,259.0]
[1742583482355,34.98,127.48,127.42,259.0]
[1742583482565,0.05974153,127.46,127.44,0.05899837]
[1742583482765,0.05974153,127.46,127.44,7.90899837]
[1742583482964,0.05974153,127.46,127.44,0.05899837]
[1742583483362,0.05974153,127.46,127.45,7.8499]
[1742583484164,0.05974153,127.46,127.44,7.90919837]
[1742583485258,0.05974153,127.46,127.45,7.8499]
[1742583485464,0.05974153,127.46,127.44,0.05899837]
[1742583485869,34.96,127.45,127.44,7.90929837]
[1742583486063,52.88088535,127.45,127.37,276.86088535]
[1742583486264,52.88088535,127.45,127.37,258.94]
[1742583486665,7.8508,127.44,127.37,258.94]
[1742583486865,52.88088535,127.45,127.37,258.94]
[1742583487063,60.73108535,127.45,127.41,7.8519]
[1742583487265,0.05172497,127.42,127.4,0.02810822]
[1742583487570,35.01172497,127.42,127.4,0.02810822]
[1742583488273,2.497e-05,127.42,127.41,42.8124]
[1742583489370,2.497e-05,127.42,127.41,7.8524]
[1742583490367,2.497e-05,127.42,127.4,0.02810822]
[1742583490671,2.497e-05,127.42,127.37,258.94]
[1742583490971,4.19222497,127.42,127.38,7.8539]
[1742583491365,12.04402497,127.42,127.38,7.8539]
[1742583491967,7.8524,127.41,127.39,0.0517]
[1742583492266,34.96,127.4,127.32,276.90088535]
[1742583492466,34.96,127.4,127.36,7.8552]
[1742583492669,42.8133,127.4,127.36,7.8552]
[1742583492864,42.8133,127.4,127.32,276.90088535]
[1742583493070,34.96,127.4,127.32,276.90088535]
[1742583493465,0.05568432,127.37,127.32,276.90088535]
[1742583493661,62.0,127.36,127.32,276.90088535]
[1742583494369,62.0,127.36,127.35,7.8561]
[1742583494972,62.0,127.36,127.34,7.8564]
[1742583495272,62.0,127.36,127.32,276.90088535]
[1742583495671,62.0,127.36,127.35,7.8561]
[1742583496375,62.0,127.36,127.34,7.8564]
[1742583497070,62.0,127.36,127.32,258.98]
[1742583497665,62.0,127.36,127.32,266.8376]
[1742583497974,7.8565,127.35,127.28,52.86088535]
[1742583498175,7.8565,127.35,127.31,7.8583]
[1742583498468,0.05091588,127.33,127.31,7.8583]
[1742583498668,52.91180123,127.33,127.25,64.06064195]
[1742583498874,34.94,127.33,127.26,17.92088535]
[1742583499172,0.058912,127.3,127.26,17.92088535]
[1742583499374,34.998912,127.3,127.25,64.06064195]
[1742583499576,34.998912,127.3,127.25,81.9815273]
[1742583500271,34.998912,127.3,127.28,7.8601]
[1742583501064,79.92088535,127.29,127.23,12.5521]
[1742583501372,0.05599355,127.27,127.23,12.5521]
[1742583501762,0.05599355,127.27,127.26,7.8617]
[1742583504769,259.18,127.34,127.29,7.8594]
[1742583504969,34.94,127.33,127.29,7.8594]
[1742583505173,52.86088535,127.33,127.29,7.8594]
[1742583505373,52.86088535,127.33,127.25,34.94]
[1742583505775,52.86088535,127.33,127.28,7.8601]
[1742583505975,0.05103999,127.3,127.28,7.91294566]
[1742583506571,0.05103999,127.3,127.28,0.05284566]
[1742583507478,34.99103999,127.3,127.28,0.05284566]
[1742583507676,62.0,127.29,127.28,0.05284566]
[1742583508079,79.92088535,127.29,127.24,7.8628]
[1742583508479,79.92088535,127.29,127.22,259.06]
[1742583508675,7.8605,127.28,127.23,7.8632]
[1742583508877,34.94,127.27,127.22,259.06]
[1742583509073,0.05994871,127.26,127.23,7.8632]
[1742583509380,0.05994871,127.26,127.22,259.06]
[1742583509679,0.05994871,127.26,127.24,7.8626]
[1742583509874,0.05994871,127.26,127.22,259.06]
[1742583510382,0.05994871,127.26,127.23,7.8634]
[1742583511180,0.05994871,127.26,127.2,39.3003]
[1742583511380,7.92164871,127.26,127.2,39.3003]
[1742583511677,17.92088535,127.23,127.12,259.3]
[1742583511882,62.0,127.22,127.16,30.42968535]
[1742583512075,0.05531838,127.2,127.19,7.866]
[1742583513274,34.94,127.25,127.24,7.8629]
[1742583513477,17.92088535,127.27,127.24,7.8629]
[1742583514284,39.2711,127.3,127.23,34.94]
[1742583514481,0.05137462,127.27,127.24,0.05006138]
[1742583516180,62.05137462,127.27,127.24,0.05006138]
[1742583517385,62.05137462,127.27,127.26,7.8617]
[1742583517578,0.05137462,127.27,127.26,7.8617]
[1742583518086,34.94,127.33,127.3,7.8589]
[1742583518284,52.86088535,127.33,127.3,7.8589]
[1742583518786,52.86088535,127.33,127.31,7.8585]
[1742583519180,52.86088535,127.33,127.31,7.9104004]
[1742583519381,52.91469497,127.33,127.32,7.8579]
[1742583519583,34.99380962,127.33,127.32,7.8579]
[1742583520183,0.05380962,127.33,127.32,7.8579]
[1742583520782,0.05380962,127.33,127.31,7.9103004]
[1742583521783,0.05380962,127.33,127.31,0.0519004]
[1742583522888,34.92,127.32,127.31,0.0519004]
[1742583523986,34.92,127.32,127.26,7.8614]
[1742583524189,17.92088535,127.31,127.26,7.8614]
[1742583524891,62.0,127.3,127.27,7.8609]
[1742583525191,62.05694308,127.3,127.27,7.91713157]
[1742583525492,62.05694308,127.3,127.27,0.05623157]
[1742583526490,69.91624308,127.3,127.27,0.05623157]
[1742583526691,34.9,127.29,127.27,0.05623157]
[1742583526886,7.8604,127.28,127.27,0.05623157]
[1742583527792,60.68108535,127.29,127.27,0.05623157]
[1742583527992,52.82088535,127.29,127.27,0.05623157]
[1742583528291,7.8604,127.28,127.27,0.05623157]
[1742583528890,7.8611,127.27,127.23,7.8632]
[1742583529191,34.9,127.26,127.21,4.216]
[1742583529392,34.9,127.26,127.23,7.8632]
[1742583529885,62.0,127.25,127.21,4.216]
[1742583530589,62.0,127.25,127.22,7.8638]
[1742583530782,62.0,127.25,127.19,267.4397]
[1742583530783,62.0,127.25,127.19,302.3397]
[1742583531185,0.05444008,127.23,127.2,7.8652]
[1742583531386,0.05444008,127.23,127.19,302.3397]
[1742583531788,34.9,127.27,127.2,17.92088535]
[1742583531993,52.82088535,127.31,127.22,17.92088535]
[1742583532205,52.82088535,127.31,127.23,39.2754]
[1742583532687,17.92088535,127.35,127.23,39.2754]
[1742583532893,34.9,127.34,127.26,17.92088535]
[1742583533094,0.05454806,127.3,127.27,38.94945796]
[1742583533395,0.05454806,127.3,127.29,7.8598]
[1742583534288,4.806e-05,127.3,127.29,7.8598]
[1742583534993,4.806e-05,127.3,127.29,11.9795]
[1742583536199,4.806e-05,127.3,127.29,7.8598]
[1742583537694,4.806e-05,127.3,127.28,7.8601]
[1742583537994,4.806e-05,127.3,127.27,4.04945796]
[1742583538194,4.806e-05,127.3,127.28,7.8601]
[1742583538495,4.806e-05,127.3,127.27,4.04945796]
[1742583538695,4.806e-05,127.3,127.28,7.86]
[1742583538895,4.806e-05,127.3,127.27,4.04945796]
[1742583539091,4.806e-05,127.3,127.27,0.05465796]